fUSD/lending_fUSD_20240129
["ID","MTS","AMOUNT","RATE_DAILY","PERIOD"]
[312983178,1706562662582,-3128.07,0.00052602,31]
[312983179,1706562662592,-500.0,0.00052602,31]
[312983180,1706562662602,-500.0,0.00052602,31]
[312983181,1706562662611,-500.0,0.00052602,31]
[312983182,1706562662621,-7495.58,0.00052602,31]
[312983183,1706562662760,-1595.35,0.00052602,31]
[312983184,1706562662770,-500.0,0.00052602,31]
[312983185,1706562662779,-643.77798095,0.00052602,31]
[312983186,1706562662789,-681.92,0.00052602,31]
[312983187,1706562662798,-708.47,0.00052602,31]
[312983188,1706562662807,-807.3,0.00052602,31]
[312983189,1706562662819,-500.0,0.00052602,31]
[312983190,1706562662828,-500.0,0.00052602,31]
[312983191,1706562662837,-748.48,0.00052602,31]
[312983192,1706562662846,-500.0,0.00052602,31]
[312983193,1706562662855,-500.0,0.00052602,31]
[312983194,1706562662864,-595.51,0.00052602,31]
[312983195,1706562662874,-500.0,0.00052602,2]
[312983196,1706562662883,-500.0,0.00052602,31]
[312983197,1706562662892,-500.0,0.00052602,31]
[312983198,1706562662901,-562.86,0.00052602,2]
[312983199,1706562662910,-1405.87,0.00052602,5]
[312983200,1706562662919,-500.0,0.00052602,31]
[312983201,1706562662929,-638.09,0.00052602,31]
[312983202,1706562662939,-500.0,0.00052602,31]
[312983203,1706562662948,-737.77,0.00052602,31]
[312983204,1706562662958,-665.71,0.00052602,31]
[312983205,1706562662967,-500.0,0.00052602,31]
[312983206,1706562662978,-944.07,0.00052603,30]
[312983207,1706562662988,-5164.09055,0.00052603,30]
[312983208,1706562662997,-154.67281811,0.00052629,60]
[312983209,1706562663009,-561.4,0.00052664,30]
[312983210,1706562663020,-561.4,0.00052664,30]
[312983211,1706562663031,-19950.05082351,0.00052671,2]
[312983212,1706562663040,-200.0,0.000527,30]
[312983213,1706562663050,-150.0,0.00052703,30]
[312983214,1706562663062,-150.0,0.00052703,30]
[312983215,1706562663071,-150.0,0.00052703,30]
[312983216,1706562663081,-150.0,0.00052703,30]
[312983217,1706562663092,-157.83769784,0.00052713,60]
[312983218,1706562663102,-150.0,0.00052785,30]
[312983219,1706562663112,-747.0,0.0005279,2]
[312983220,1706562663123,-472.99,0.00052796,2]
[312983221,1706562663133,-151.013,0.00052798,59]
[312983222,1706562663143,-158.0390581,0.00052829,60]
[312983223,1706562663154,-150.0,0.00052854,30]
[312983224,1706562663164,-200.0,0.00052876,31]
[312983225,1706562663172,-616.76757982,0.00052876,31]
[312983226,1706562663181,-499.89169788,0.00052876,31]
[312983227,1706562663190,-500.0,0.00052876,31]
[312983228,1706562663199,-500.0,0.00052876,31]
[312983229,1706562663208,-500.0,0.00052876,31]
[312983230,1706562663217,-500.0,0.00052876,31]
[312983231,1706562663226,-1234.0,0.00052876,7]
[312983232,1706562663234,-500.0,0.00052876,31]
[312983233,1706562663243,-500.0,0.00052876,31]
[312983234,1706562663252,-500.0,0.00052876,7]
[312983235,1706562663261,-500.0,0.00052876,31]
[312983236,1706562663270,-500.0,0.00052876,7]
[312983237,1706562663280,-212.33224946,0.00052876,31]
[312983238,1706562663290,-500.0,0.00052876,31]
[312983239,1706562663301,-500.0,0.00052876,31]
[312983240,1706562663311,-500.0,0.00052876,2]
[312983241,1706562663321,-500.0,0.00052876,7]
[312983242,1706562663329,-564.51,0.00052876,31]
[312983243,1706562663339,-500.0,0.00052876,31]
[312983244,1706562663348,-585.11,0.00052876,31]
[312983245,1706562663357,-500.0,0.00052876,31]
[312983246,1706562663366,-675.0,0.00052876,31]
[312983247,1706562663375,-584.1,0.00052876,31]
[312983248,1706562663384,-500.0,0.00052876,2]
[312983249,1706562663393,-1000.0,0.00052876,7]
[312983250,1706562663402,-500.0,0.00052876,31]
[312983251,1706562663411,-179.95404934,0.00052876,31]
[312983252,1706562663421,-500.0,0.00052876,31]
[312983253,1706562663430,-500.0,0.00052876,31]
[312983254,1706562663441,-500.0,0.00052876,31]
[312983255,1706562663450,-500.0,0.00052876,31]
[312983256,1706562663461,-500.0,0.00052876,31]
[312983257,1706562663471,-500.0,0.00052876,31]
[312983258,1706562663481,-500.0,0.00052876,31]
[312983259,1706562663490,-500.0,0.00052876,31]
[312983260,1706562663500,-1188.3,0.00052876,31]
[312983261,1706562663509,-500.0,0.00052876,31]
[312983262,1706562663520,-500.0,0.00052876,31]
[312983263,1706562663529,-500.0,0.00052876,31]
[312983264,1706562663538,-500.0,0.00052876,31]
[312983265,1706562663550,-500.0,0.00052876,31]
[312983266,1706562663560,-500.0,0.00052876,31]
[312983267,1706562663570,-500.0,0.00052876,31]
[312983268,1706562663579,-753.23,0.00052876,7]
[312983269,1706562663589,-500.0,0.00052876,31]
[312983270,1706562663599,-183.12691732,0.00052876,31]
[312983271,1706562663608,-500.0,0.00052876,2]
[312983272,1706562663617,-643.28294053,0.00052876,31]
[312983273,1706562663626,-500.0,0.00052876,31]
[312983274,1706562663635,-500.0,0.00052876,31]
[312983275,1706562663645,-500.0,0.00052876,31]
[312983276,1706562663656,-500.0,0.00052876,31]
[312983277,1706562663666,-558.1538653,0.00052876,31]
[312983278,1706562663674,-500.0,0.00052876,31]
[312983279,1706562663684,-1008.73,0.00052876,31]
[312983280,1706562663693,-500.0,0.00052876,31]
[312983281,1706562663702,-500.0,0.00052876,31]
[312983282,1706562663712,-500.0,0.00052876,31]
[312983283,1706562663721,-565.23,0.00052876,2]
[312983284,1706562663730,-189.85472406,0.00052876,31]
[312983285,1706562663740,-500.0,0.00052876,31]
[312983286,1706562663749,-500.0,0.00052876,2]
[312983287,1706562663758,-507.40878282,0.00052876,31]
[312983288,1706562663768,-500.0,0.00052876,31]
[312983289,1706562663777,-500.0,0.00052876,31]
[312983290,1706562663786,-500.0,0.00052876,31]
[312983291,1706562663795,-500.0,0.00052876,31]
[312983292,1706562663805,-1395.99,0.00052876,2]
[312983293,1706562663820,-500.0,0.00052876,31]
[312983294,1706562663834,-500.0,0.00052876,31]
[312983295,1706562663843,-500.0,0.00052876,2]
[312983296,1706562663853,-653.75,0.00052876,31]
[312983297,1706562663863,-500.0,0.00052876,31]
[312983298,1706562663872,-500.0,0.00052876,31]
[312983299,1706562663882,-500.0,0.00052876,31]
[312983300,1706562663892,-500.0,0.00052876,31]
[312983301,1706562663902,-500.0,0.00052876,31]
[312983302,1706562663911,-500.0,0.00052876,31]
[312983303,1706562663920,-500.0,0.00052876,31]
[312983304,1706562663930,-500.0,0.00052876,31]
[312983305,1706562663940,-1000.0,0.00052876,31]
[312983306,1706562663949,-500.0,0.00052876,31]
[312983307,1706562663959,-500.0,0.00052876,31]
[312983308,1706562663969,-508.14,0.00052876,31]
[312983309,1706562663979,-500.0,0.00052876,31]
[312983310,1706562663989,-423.0472509,0.00052876,31]
[312983311,1706562663999,-500.0,0.00052876,31]
[312983312,1706562664009,-516.0,0.00052876,31]
[312983313,1706562664019,-500.0,0.00052876,15]
[312983314,1706562664029,-500.0,0.00052876,31]
[312983315,1706562664040,-584.65,0.00052876,2]
[312983316,1706562664050,-3813.28,0.00052876,31]
[312983317,1706562664060,-253.60004444,0.00052876,31]
[312983318,1706562664069,-500.0,0.00052876,31]
[312983319,1706562664079,-500.0,0.00052876,31]
[312983320,1706562664089,-500.0,0.00052876,31]
[312983321,1706562664098,-500.0,0.00052876,31]
[312983322,1706562664107,-500.0,0.00052876,31]
[312983323,1706562664117,-500.0,0.00052876,31]
[312983324,1706562664126,-678.76,0.00052876,31]
[312983325,1706562664137,-810.75,0.00052876,31]
[312983326,1706562664146,-500.0,0.00052876,31]
[312983327,1706562664156,-500.0,0.00052876,31]
[312983328,1706562664165,-1315.92,0.00052876,31]
[312983329,1706562664177,-500.0,0.00052876,2]
[312983330,1706562664188,-500.0,0.00052876,31]
[312983331,1706562664197,-500.0,0.00052876,31]
[312983332,1706562664207,-500.0,0.00052876,31]
[312983333,1706562664217,-500.0,0.00052876,31]
[312983334,1706562664226,-500.0,0.00052876,31]
[312983335,1706562664235,-500.0,0.00052876,31]
[312983336,1706562664245,-566.19455033,0.00052876,2]
[312983337,1706562664254,-500.0,0.00052876,31]
[312983338,1706562664264,-500.0,0.00052876,31]
[312983339,1706562664273,-529.13840215,0.00052876,120]
[312983340,1706562664282,-500.0,0.00052876,31]
[312983341,1706562664292,-1137.15,0.00052876,31]
[312983342,1706562664301,-500.0,0.00052876,31]
[312983343,1706562664311,-500.0,0.00052876,31]
[312983344,1706562664320,-729.95,0.00052876,31]
[312983345,1706562664330,-842.32,0.00052876,31]
[312983346,1706562664340,-500.0,0.00052876,31]
[312983347,1706562664349,-3314.2,0.00052876,31]
[312983348,1706562664359,-1404.56,0.00052876,31]
[312983349,1706562664368,-500.0,0.00052876,31]
[312983350,1706562664377,-523.81203939,0.00052876,31]
[312983351,1706562664387,-1228.34,0.00052876,31]
[312983352,1706562664396,-500.0,0.00052876,31]
[312983353,1706562664405,-2951.99,0.00052876,31]
[312983354,1706562664415,-500.0,0.00052876,31]
[312983355,1706562664424,-2217.15,0.00052876,31]
[312983356,1706562664433,-5861.0,0.00052876,31]
[312983357,1706562664442,-500.0,0.00052876,31]
[312983358,1706562664451,-904.42,0.00052876,31]
[312983359,1706562664461,-514.92,0.00052876,31]
[312983360,1706562664470,-500.0,0.00052876,31]
[312983361,1706562664483,-316.54634103,0.00052876,31]
[312983362,1706562664492,-4123.05,0.00052876,31]
[312983363,1706562664501,-500.0,0.00052876,31]
[312983364,1706562664511,-834.68,0.00052876,31]
[312983365,1706562664521,-500.0,0.00052876,31]
[312983366,1706562664530,-500.0,0.00052876,31]
[312983367,1706562664539,-500.0,0.00052876,31]
[312983368,1706562664551,-500.0,0.00052876,31]
[312983369,1706562664562,-500.0,0.00052876,31]
[312983370,1706562664571,-2352.21,0.00052876,5]
[312983371,1706562664581,-872.42,0.00052876,31]
[312983372,1706562664591,-808.55,0.00052876,31]
[312983373,1706562664601,-500.0,0.00052876,31]
[312983374,1706562664611,-1072.78,0.00052876,31]
[312983375,1706562664620,-768.15,0.00052876,31]
[312983376,1706562664630,-848.92,0.00052876,31]
[312983377,1706562664640,-500.0,0.00052876,31]
[312983378,1706562664650,-1057.66,0.00052876,31]
[312983379,1706562664659,-1366.69,0.00052876,31]
[312983380,1706562664669,-500.0,0.00052876,31]
[312983381,1706562664678,-500.0,0.00052876,31]
[312983382,1706562664688,-500.0,0.00052876,31]
[312983383,1706562664697,-664.14,0.00052876,31]
[312983384,1706562664706,-500.0,0.00052876,31]
[312983385,1706562664716,-1682.7,0.00052876,7]
[312983386,1706562664725,-777.18,0.00052876,31]
[312983387,1706562664735,-500.0,0.00052876,31]
[312983388,1706562664744,-500.0,0.00052876,31]
[312983389,1706562664754,-856.53,0.00052876,31]
[312983390,1706562664763,-563.42369322,0.00052876,31]
[312983391,1706562664772,-1646.94,0.00052876,31]
[312983392,1706562664782,-988.88,0.00052876,31]
[312983393,1706562664792,-500.0,0.00052876,31]
[312983394,1706562664801,-1527.83,0.00052876,31]
[312983395,1706562664811,-500.0,0.00052876,31]
[312983396,1706562664820,-256.69993596,0.00052876,31]
[312983397,1706562664829,-790.42,0.00052876,31]
[312983398,1706562664839,-1019.27,0.00052876,31]
[312983399,1706562664848,-1734.17,0.00052876,31]
[312983400,1706562664858,-548.48,0.00052876,31]
[312983401,1706562664867,-500.0,0.00052876,31]
[312983402,1706562664877,-1982.35,0.00052876,31]
[312983403,1706562664886,-531.18,0.00052876,31]
[312983404,1706562664896,-837.06,0.00052876,31]
[312983405,1706562664905,-900.36,0.00052876,31]
[312983406,1706562664914,-500.0,0.00052876,31]
[312983407,1706562664924,-861.81,0.00052876,31]
[312983408,1706562664934,-1065.22,0.00052876,31]
[312983409,1706562664943,-526.99,0.00052876,31]
[312983410,1706562664953,-3233.79,0.00052876,31]
[312983411,1706562664962,-500.0,0.00052876,31]
[312983412,1706562664971,-500.0,0.00052876,31]
[312983413,1706562664981,-500.0,0.00052876,31]
[312983414,1706562664990,-500.0,0.00052876,31]
[312983415,1706562665000,-770.21,0.00052876,31]
[312983416,1706562665009,-500.0,0.00052876,31]
[312983417,1706562665019,-1898.91,0.00052876,31]
[312983418,1706562665029,-500.0,0.00052876,31]
[312983419,1706562665039,-500.0,0.00052876,31]
[312983420,1706562665049,-500.0,0.00052876,31]
[312983421,1706562665059,-500.0,0.00052876,31]
[312983422,1706562665068,-1120.72,0.00052876,31]
[312983423,1706562665078,-500.0,0.00052876,31]
[312983424,1706562665087,-1947.76,0.00052876,31]
[312983425,1706562665096,-3565.46,0.00052876,31]
[312983426,1706562665106,-760.81,0.00052876,31]
[312983427,1706562665115,-3131.4,0.00052876,31]
[312983428,1706562665125,-591.24,0.00052876,31]
[312983429,1706562665135,-500.0,0.00052876,31]
[312983430,1706562665145,-662.72,0.00052876,31]
[312983431,1706562665158,-500.0,0.00052876,31]
[312983432,1706562665167,-274.61575707,0.00052876,31]
[312983433,1706562665177,-806.17,0.00052876,31]
[312983434,1706562665186,-500.0,0.00052876,31]
[312983435,1706562665196,-500.0,0.00052876,14]
[312983436,1706562665206,-500.0,0.00052876,31]
[312983437,1706562665215,-500.0,0.00052876,31]
[312983438,1706562665224,-500.0,0.00052876,31]
[312983439,1706562665234,-751.56,0.00052876,31]
[312983440,1706562665244,-500.0,0.00052876,31]
[312983441,1706562665254,-500.0,0.00052876,31]
[312983442,1706562665263,-500.0,0.00052876,31]
[312983443,1706562665466,-533.14,0.00052876,31]
[312983444,1706562665476,-500.0,0.00052876,31]
[312983445,1706562665486,-500.0,0.00052876,31]
[312983446,1706562665495,-500.0,0.00052876,31]
[312983447,1706562665505,-1270.54,0.00052876,31]
[312983448,1706562665515,-1323.4,0.00052876,31]
[312983449,1706562665524,-1029.27,0.00052876,31]
[312983450,1706562665533,-991.32,0.00052876,31]
[312983451,1706562665543,-500.0,0.00052876,31]
[312983452,1706562665556,-500.0,0.00052876,31]
[312983453,1706562665565,-1953.23,0.00052876,31]
[312983454,1706562665574,-500.0,0.00052876,31]
[312983455,1706562665583,-500.0,0.00052876,31]
[312983456,1706562665594,-592.93,0.00052876,31]
[312983457,1706562665603,-5461.09,0.00052876,31]
[312983458,1706562665613,-500.0,0.00052876,31]
[312983459,1706562665622,-500.0,0.00052876,31]
[312983460,1706562665632,-1516.26,0.00052876,31]
[312983461,1706562665642,-500.0,0.00052876,31]
[312983462,1706562665652,-1450.85,0.00052876,31]
[312983463,1706562665661,-500.0,0.00052876,31]
[312983464,1706562665671,-7439.22,0.00052876,31]
[312983465,1706562665680,-896.98,0.00052876,31]
[312983466,1706562665690,-186.64888754,0.00052876,31]
[312983467,1706562665699,-1073.32,0.00052876,31]
[312983468,1706562665709,-500.0,0.00052876,31]
[312983469,1706562665719,-1105.84,0.00052876,31]
[312983470,1706562665729,-500.0,0.00052876,31]
[312983471,1706562665738,-838.35,0.00052876,31]
[312983472,1706562665748,-500.0,0.00052876,31]
[312983473,1706562665762,-1207.63,0.00052876,31]
[312983474,1706562665771,-500.0,0.00052876,31]
[312983475,1706562665781,-2788.39,0.00052876,31]
[312983476,1706562665791,-500.0,0.00052876,31]
[312983477,1706562665800,-500.0,0.00052876,31]
[312983478,1706562665810,-500.0,0.00052876,31]
[312983479,1706562665820,-500.0,0.00052876,31]
[312983480,1706562665829,-500.0,0.00052876,31]
[312983481,1706562665839,-750.58,0.00052876,31]
[312983482,1706562665848,-510.54,0.00052876,31]
[312983483,1706562665858,-500.0,0.00052876,31]
[312983484,1706562665867,-559.54,0.00052876,31]
[312983485,1706562665877,-3374.14,0.00052876,31]
[312983486,1706562665887,-500.0,0.00052876,31]
[312983487,1706562665896,-1076.55,0.00052876,31]
[312983488,1706562665906,-3128.07,0.00052876,31]
[312983489,1706562665916,-500.0,0.00052876,31]
[312983490,1706562665925,-436.5009187,0.00052876,31]
[312983491,1706562665935,-500.0,0.00052876,31]
[312983492,1706562665944,-7495.58,0.00052876,31]
[312983493,1706562665954,-1595.35,0.00052876,31]
[312983494,1706562665964,-500.0,0.00052876,31]
[312983495,1706562665974,-681.92,0.00052876,31]
[312983496,1706562665984,-708.47,0.00052876,31]
[312983497,1706562665994,-807.3,0.00052876,31]
[312983498,1706562666003,-500.0,0.00052876,31]
[312983499,1706562666014,-500.0,0.00052876,31]
[312983500,1706562666023,-748.48,0.00052876,31]
[312983501,1706562666033,-500.0,0.00052876,31]
[312983502,1706562666042,-209.66542617,0.00052876,31]
[312983503,1706562666052,-595.51,0.00052876,31]
[312983504,1706562666062,-500.0,0.00052876,31]
[312983505,1706562666072,-636.03037481,0.00052876,2]
[312983506,1706562666081,-500.0,0.00052876,31]
[312983507,1706562666090,-562.86,0.00052876,2]
[312983508,1706562666100,-1405.87,0.00052876,5]
[312983509,1706562666110,-500.0,0.00052876,31]
[312983510,1706562666119,-638.09,0.00052876,31]
[312983511,1706562666129,-500.0,0.00052876,31]
[312983512,1706562666138,-737.77,0.00052876,31]
[312983513,1706562666147,-665.71,0.00052876,31]
[312983514,1706562666156,-150.0,0.00052884,30]
[312983515,1706562666166,-164.76,0.000529,30]
[312983516,1706562666175,-149999.0,0.000529,30]
[312983517,1706562666185,-149999.0,0.000529,30]
[312983518,1706562666194,-1075.75476666,0.000529,30]
[312983519,1706562666203,-151.0,0.000529,14]
[312983520,1706562666212,-151.0,0.000529,14]
[312983521,1706562666222,-151.0,0.000529,14]
[312983522,1706562666231,-151.0,0.000529,14]
[312983523,1706562666240,-151.0,0.000529,14]
[312983524,1706562666249,-151.0,0.000529,14]
[312983525,1706562666258,-151.0,0.000529,14]
[312983526,1706562666267,-296.292967,0.000529,14]
[312983527,1706562666276,-151.0,0.000529,14]
[312983528,1706562666285,-151.0,0.000529,14]
[312983529,1706562666295,-151.0,0.000529,14]
[312983530,1706562666304,-2701.23172994,0.000529,2]
[312983531,1706562666313,-151.0,0.000529,14]
[312983532,1706562666322,-151.0,0.000529,14]
[312983533,1706562666331,-279.309932,0.000529,14]
[312983534,1706562666340,-279.309932,0.000529,14]
[312983535,1706562666348,-151.0,0.000529,14]
[312983536,1706562666358,-151.0,0.000529,14]
[312983537,1706562666367,-240.053015,0.000529,14]
[312983538,1706562666377,-154.67281811,0.00052922,60]
[312983539,1706562666386,-154.67281811,0.00052926,60]
[312983540,1706562666396,-150.0,0.0005293,30]
[312983541,1706562666406,-561.4,0.00052937,30]
[312983542,1706562666416,-561.4,0.00052937,30]
[312983543,1706562666426,-157.83769784,0.00052952,60]
[312983544,1706562666436,-150.0,0.00052962,30]
[312983545,1706562666445,-67831.0,0.00052981,30]
[312983546,1706562666455,-2240.0,0.00052981,30]
[312983547,1706562666464,-511.0,0.00052981,30]
[312983548,1706562666474,-151.0,0.00052981,14]
[312983549,1706562666483,-151.0,0.00052981,14]
[312983550,1706562666493,-151.0,0.00052981,14]
[312983551,1706562666502,-151.0,0.00052981,14]
[312983552,1706562666512,-150.0,0.00052992,2]
[312983553,1706562666522,-330.4429,0.00053,60]
[312983554,1706562666532,-600.0,0.00053,30]
[312983555,1706562666541,-3753.8557301,0.00053,60]
[312983556,1706562666554,-4611.15060252,0.00053,30]
[312983557,1706562666563,-310.64396725,0.00053,120]
[312983558,1706562666573,-116911.94435311,0.00053,30]
[312983559,1706562666582,-150.00754565,0.00053,30]
[312983560,1706562666592,-5025.42201925,0.00053,30]
[312983561,1706562666602,-300.0,0.00053,31]
[312983562,1706562666612,-200.0,0.00053,31]
[312983563,1706562666622,-151.0,0.00053,14]
[312983564,1706562666632,-375.817034,0.00053,14]
[312983565,1706562666643,-375.817034,0.00053,14]
[312983566,1706562666653,-950.08022766,0.00053,60]
[312983567,1706562666662,-13954.07568592,0.00053,60]
[312983568,1706562666673,-2779.73813162,0.00053,60]
[312983569,1706562666683,-540.26260831,0.00053,60]
[312983570,1706562666695,-2510.95,0.00053,60]
[312983571,1706562666706,-250.440292,0.00053,31]
[312983572,1706562666716,-150.68,0.00053,120]
[312983573,1706562666726,-150.68,0.00053,120]
[312983574,1706562666735,-150.68,0.00053,120]
[312983575,1706562666745,-150.68,0.00053,120]
[312983576,1706562666755,-150.68,0.00053,120]
[312983577,1706562666765,-150.68,0.00053,120]
[312983578,1706562666775,-150.68,0.00053,120]
[312983579,1706562666785,-150.68,0.00053,120]
[312983580,1706562666794,-150.68,0.00053,120]
[312983581,1706562666804,-150.68,0.00053,120]
[312983582,1706562666814,-150.68,0.00053,120]
[312983583,1706562666824,-150.68,0.00053,120]
[312983584,1706562666833,-150.68,0.00053,120]
[312983585,1706562666843,-150.68,0.00053,120]
[312983586,1706562666852,-150.68,0.00053,120]
[312983587,1706562666862,-150.68,0.00053,120]
[312983588,1706562666872,-150.68,0.00053,120]
[312983589,1706562666882,-150.68,0.00053,120]
[312983590,1706562666892,-150.68,0.00053,120]
[312983591,1706562666901,-150.68,0.00053,120]
[312983592,1706562666911,-150.68,0.00053,120]
[312983593,1706562666920,-150.68,0.00053,120]
[312983594,1706562666930,-150.68,0.00053,120]
[312983595,1706562666942,-150.68,0.00053,120]
[312983596,1706562666951,-150.68,0.00053,120]
[312983597,1706562666962,-150.68,0.00053,120]
[312983598,1706562666971,-150.68,0.00053,120]
[312983599,1706562666981,-150.68,0.00053,120]
[312983600,1706562666990,-150.68,0.00053,120]
[312983601,1706562667000,-150.68,0.00053,120]
[312983602,1706562667010,-150.68,0.00053,120]
[312983603,1706562667019,-150.68,0.00053,120]
[312983604,1706562667029,-150.68,0.00053,120]
[312983605,1706562667039,-150.68,0.00053,120]
[312983606,1706562667048,-150.68,0.00053,120]
[312983607,1706562667058,-150.68,0.00053,120]
[312983608,1706562667068,-150.68,0.00053,120]
[312983609,1706562667077,-150.68,0.00053,120]
[312983610,1706562667087,-150.68,0.00053,120]
[312983611,1706562667097,-150.68,0.00053,120]
[312983612,1706562667115,-150.68,0.00053,120]
[312983613,1706562667127,-150.68,0.00053,120]
[312983614,1706562667137,-150.68,0.00053,120]
[312983615,1706562667147,-150.68,0.00053,120]
[312983616,1706562667157,-150.68,0.00053,120]
[312983617,1706562667167,-150.68,0.00053,120]
[312983618,1706562667176,-150.68,0.00053,120]
[312983619,1706562667186,-150.68,0.00053,120]
[312983620,1706562667196,-150.68,0.00053,120]
[312983621,1706562667205,-150.68,0.00053,120]
[312983622,1706562667215,-150.68,0.00053,120]
[312983623,1706562667225,-150.68,0.00053,120]
[312983624,1706562667235,-150.68,0.00053,120]
[312983625,1706562667245,-150.68,0.00053,120]
[312983626,1706562667254,-150.68,0.00053,120]
[312983627,1706562667264,-150.68,0.00053,120]
[312983628,1706562667274,-150.68,0.00053,120]
[312983629,1706562667284,-150.68,0.00053,120]
[312983630,1706562667294,-150.68,0.00053,120]
[312983631,1706562667303,-150.68,0.00053,120]
[312983632,1706562667313,-150.68,0.00053,120]
[312983633,1706562667323,-150.68,0.00053,120]
[312983634,1706562667333,-150.68,0.00053,120]
[312983635,1706562667342,-150.68,0.00053,120]
[312983636,1706562667351,-150.68,0.00053,120]
[312983637,1706562667361,-150.68,0.00053,120]
[312983638,1706562667371,-150.0,0.00053006,30]
[312983639,1706562667381,-150.0,0.00053033,30]
[312983640,1706562667390,-150.0,0.00053033,30]
[312983641,1706562667400,-154.67281811,0.00053042,60]
[312983642,1706562667409,-283.0,0.00053051,28]
[312983643,1706562667419,-155.84294884,0.00053053,60]
[312983644,1706562667428,-150.0,0.00053066,30]
[312983645,1706562667437,-161.23409423,0.00053075,60]
[312983646,1706562667447,-150.52477513,0.00053119,60]
[312983647,1706562667457,-200.0,0.0005315,31]
[312983648,1706562667466,-500.0,0.0005315,31]
[312983649,1706562667475,-500.0,0.0005315,31]
[312983650,1706562667484,-500.0,0.0005315,31]
[312983651,1706562667494,-500.0,0.0005315,31]
[312983652,1706562667504,-1234.0,0.0005315,7]
[312983653,1706562667513,-500.0,0.0005315,31]
[312983654,1706562667523,-500.0,0.0005315,31]
[312983655,1706562667532,-500.0,0.0005315,7]
[312983656,1706562667542,-500.0,0.0005315,31]
[312983657,1706562667553,-500.0,0.0005315,7]
[312983658,1706562667563,-500.0,0.0005315,31]
[312983659,1706562667572,-500.0,0.0005315,31]
[312983660,1706562667582,-500.0,0.0005315,2]
[312983661,1706562667591,-500.0,0.0005315,7]
[312983662,1706562667601,-564.51,0.0005315,31]
[312983663,1706562667610,-500.0,0.0005315,31]
[312983664,1706562667619,-585.11,0.0005315,31]
[312983665,1706562667629,-500.0,0.0005315,31]
[312983666,1706562667639,-675.0,0.0005315,31]
[312983667,1706562667648,-584.1,0.0005315,31]
[312983668,1706562667658,-500.0,0.0005315,2]
[312983669,1706562667667,-1000.0,0.0005315,7]
[312983670,1706562667677,-500.0,0.0005315,31]
[312983671,1706562667686,-500.0,0.0005315,31]
[312983672,1706562667695,-500.0,0.0005315,31]
[312983673,1706562667705,-500.0,0.0005315,31]
[312983674,1706562667714,-500.0,0.0005315,31]
[312983675,1706562667724,-500.0,0.0005315,31]
[312983676,1706562667734,-500.0,0.0005315,31]
[312983677,1706562667743,-150.85752363,0.0005315,31]